[Event "*** SCC Grand Prix: Titled Tuesday Blitz"]
[Site "Chess.com"]
[Date "2020.10.13"]
[Round "4"]
[White "keepitcool9499"]
[Black "Grieve72"]
[Result "1-0"]
[WhiteElo "2631"]
[BlackElo "2471"]
[TimeControl "180+1"]
[EndTime "10:39:59 PDT"]
[Termination "keepitcool9499 won by resignation"]

1. d4 {[%clk 0:03:00.9]} 1... d5 {[%clk 0:02:59.3]} 2. c4 {[%clk 0:03:01.8]}
2... e6 {[%clk 0:02:59.4]} 3. Nc3 {[%clk 0:03:02.3]} 3... c6 {[%clk 0:03:00]} 4.
Nf3 {[%clk 0:03:02.7]} 4... dxc4 {[%clk 0:03:00.2]} 5. a4 {[%clk 0:03:01.1]}
5... Bb4 {[%clk 0:03:00.4]} 6. e3 {[%clk 0:02:54.2]} 6... b5 {[%clk 0:03:00.4]}
7. Bd2 {[%clk 0:02:48.7]} 7... a5 {[%clk 0:03:00.4]} 8. axb5 {[%clk 0:02:40]}
8... Bxc3 {[%clk 0:03:00.2]} 9. bxc3 {[%clk 0:02:40.3]} 9... cxb5 {[%clk
0:02:59]} 10. Ne5 {[%clk 0:02:41.2]} 10... Nf6 {[%clk 0:02:47.8]} 11. Qb1 {[%clk
0:02:31]} 11... Ba6 {[%clk 0:02:34.8]} 12. Be2 {[%clk 0:02:25.4]} 12... O-O
{[%clk 0:02:34.5]} 13. Bf3 {[%clk 0:02:23.1]} 13... Ra7 {[%clk 0:02:25]} 14. O-O
{[%clk 0:02:18.5]} 14... Nfd7 {[%clk 0:01:54.8]} 15. Nxd7 {[%clk 0:02:12.8]}
15... Nxd7 {[%clk 0:01:53.9]} 16. e4 {[%clk 0:02:11.7]} 16... e5 {[%clk
0:01:33]} 17. d5 {[%clk 0:02:04.3]} 17... Qc7 {[%clk 0:01:00.8]} 18. Qa2 {[%clk
0:01:57.7]} 18... Nc5 {[%clk 0:00:32.1]} 19. Qxa5 {[%clk 0:01:52.3]} 19... Qxa5
{[%clk 0:00:33]} 20. Rxa5 {[%clk 0:01:52.6]} 20... Nb3 {[%clk 0:00:33.7]} 21.
Be3 {[%clk 0:01:45.5]} 21... Raa8 {[%clk 0:00:24.3]} 22. Ra2 {[%clk 0:01:44.7]}
22... Bb7 {[%clk 0:00:23.6]} 23. Rb2 {[%clk 0:01:40.3]} 23... Rfd8 {[%clk
0:00:19.6]} 24. Bd1 {[%clk 0:01:28]} 24... Ra3 {[%clk 0:00:12.4]} 25. Bxb3
{[%clk 0:01:24.2]} 25... Rxb3 {[%clk 0:00:12.6]} 26. Rxb3 {[%clk 0:01:22.3]}
26... cxb3 {[%clk 0:00:13.5]} 27. Rb1 {[%clk 0:01:18.8]} 27... Ra8 {[%clk
0:00:13.4]} 28. h3 {[%clk 0:01:15.6]} 28... Ra4 {[%clk 0:00:02.5]} 29. Rxb3
{[%clk 0:01:10.1]} 29... Ba6 {[%clk 0:00:03.1]} 30. f3 {[%clk 0:01:05.4]} 30...
Kf8 {[%clk 0:00:03.3]} 31. Bc5+ {[%clk 0:01:03]} 31... Ke8 {[%clk 0:00:03.5]}
32. Rb2 {[%clk 0:00:59]} 32... Kd7 {[%clk 0:00:02.6]} 33. Kf2 {[%clk 0:00:55.5]}
33... g6 {[%clk 0:00:01.6]} 34. Kg3 {[%clk 0:00:53.2]} 34... f5 {[%clk
0:00:01.8]} 35. Bb4 {[%clk 0:00:50.2]} 35... fxe4 {[%clk 0:00:01.7]} 36. fxe4
{[%clk 0:00:49.8]} 36... Ra1 {[%clk 0:00:02.6]} 37. Rf2 {[%clk 0:00:45.9]} 37...
Ke8 {[%clk 0:00:02.1]} 38. Rf8+ {[%clk 0:00:43.6]} 38... Kd7 {[%clk 0:00:02.7]}
39. Rf7+ {[%clk 0:00:43.1]} 39... Kc8 {[%clk 0:00:03.2]} 40. Rxh7 {[%clk
0:00:42.1]} 40... Re1 {[%clk 0:00:03.4]} 41. d6 {[%clk 0:00:38.8]} 41... Rd1
{[%clk 0:00:03.2]} 42. Re7 {[%clk 0:00:36.3]} 42... Bb7 {[%clk 0:00:03.1]} 43.
Rxe5 {[%clk 0:00:35.5]} 43... Rd3+ {[%clk 0:00:02.4]} 44. Kh2 {[%clk 0:00:35.1]}
44... Kd7 {[%clk 0:00:03.3]} 45. Re7+ {[%clk 0:00:35.1]} 45... Kc6 {[%clk
0:00:03.6]} 46. Rc7+ {[%clk 0:00:34.3]} 46... Kb6 {[%clk 0:00:03.5]} 47. e5
{[%clk 0:00:25.9]} 47... Rd2 {[%clk 0:00:03.6]} 48. Rxb7+ {[%clk 0:00:25.2]}
48... Kxb7 {[%clk 0:00:03.5]} 49. e6 {[%clk 0:00:25.9]} 49... Kc6 {[%clk
0:00:04]} 50. d7 {[%clk 0:00:22]} 50... Rd3 {[%clk 0:00:04]} 51. Ba5 {[%clk
0:00:21.3]} 51... b4 {[%clk 0:00:02.3]} 52. cxb4 {[%clk 0:00:20.7]} 52... Rxd7
{[%clk 0:00:01.4]} 53. exd7 {[%clk 0:00:20.7]} 53... Kxd7 {[%clk 0:00:02.3]} 54.
b5 {[%clk 0:00:21]} 1-0

[Event "*** SCC Grand Prix: Titled Tuesday Blitz"]
[Site "Chess.com"]
[Date "2020.10.13"]
[Round "4"]
[White "annazero"]
[Black "Tayson_7"]
[Result "0-1"]
[WhiteElo "2351"]
[BlackElo "2607"]
[TimeControl "180+1"]
[EndTime "10:40:00 PDT"]
[Termination "Tayson_7 won by checkmate"]

1. d4 {[%clk 0:03:00.9]} 1... Nf6 {[%clk 0:02:58.5]} 2. Nf3 {[%clk 0:03:00.8]}
2... g6 {[%clk 0:02:55.8]} 3. c4 {[%clk 0:03:01.2]} 3... Bg7 {[%clk 0:02:56.2]}
4. g3 {[%clk 0:03:01.7]} 4... c5 {[%clk 0:02:56.7]} 5. d5 {[%clk 0:02:59.6]}
5... O-O {[%clk 0:02:57.6]} 6. Bg2 {[%clk 0:02:59.3]} 6... d6 {[%clk 0:02:58.5]}
7. O-O {[%clk 0:02:59]} 7... e6 {[%clk 0:02:59.4]} 8. Nc3 {[%clk 0:02:59.2]}
8... exd5 {[%clk 0:02:57.4]} 9. cxd5 {[%clk 0:03:00.1]} 9... Re8 {[%clk
0:02:57.2]} 10. Bf4 {[%clk 0:02:56.1]} 10... Ne4 {[%clk 0:02:56.9]} 11. Rc1
{[%clk 0:02:30.2]} 11... a6 {[%clk 0:02:40.7]} 12. a4 {[%clk 0:02:26.4]} 12...
Bg4 {[%clk 0:01:53.5]} 13. h3 {[%clk 0:02:21.5]} 13... Bxf3 {[%clk 0:01:46.6]}
14. Bxf3 {[%clk 0:02:22.4]} 14... Nxc3 {[%clk 0:01:46.5]} 15. bxc3 {[%clk
0:02:22]} 15... Qc7 {[%clk 0:01:47.4]} 16. c4 {[%clk 0:02:18.1]} 16... Nd7
{[%clk 0:01:47.1]} 17. e4 {[%clk 0:02:09]} 17... Rab8 {[%clk 0:01:43.2]} 18. Qd2
{[%clk 0:01:36.7]} 18... b5 {[%clk 0:01:35.9]} 19. axb5 {[%clk 0:01:36.1]} 19...
axb5 {[%clk 0:01:36.8]} 20. cxb5 {[%clk 0:01:35.5]} 20... Rxb5 {[%clk
0:01:37.7]} 21. Rb1 {[%clk 0:01:29]} 21... Reb8 {[%clk 0:01:30.1]} 22. Qc2
{[%clk 0:01:27.2]} 22... Bd4 {[%clk 0:01:18.1]} 23. Rxb5 {[%clk 0:01:23]} 23...
Rxb5 {[%clk 0:01:17.3]} 24. Rb1 {[%clk 0:01:22.7]} 24... Ra5 {[%clk 0:01:16.8]}
25. Qb3 {[%clk 0:01:13.1]} 25... Ne5 {[%clk 0:01:00.3]} 26. Be2 {[%clk
0:01:04.3]} 26... Kg7 {[%clk 0:00:49.2]} 27. Qb6 {[%clk 0:00:49.7]} 27... Qxb6
{[%clk 0:00:27.1]} 28. Rxb6 {[%clk 0:00:50.6]} 28... Ra2 {[%clk 0:00:28]} 29.
Kf1 {[%clk 0:00:50.5]} 29... c4 {[%clk 0:00:24.3]} 30. Bxe5+ {[%clk 0:00:35.7]}
30... dxe5 {[%clk 0:00:20.3]} 31. Rb1 {[%clk 0:00:25.1]} 31... c3 {[%clk
0:00:19.7]} 32. Rc1 {[%clk 0:00:25.2]} 32... Kf6 {[%clk 0:00:18.2]} 33. f4
{[%clk 0:00:22.3]} 33... Ke7 {[%clk 0:00:16.5]} 34. fxe5 {[%clk 0:00:19.7]}
34... Bxe5 {[%clk 0:00:17.4]} 35. g4 {[%clk 0:00:20.3]} 35... Kd6 {[%clk
0:00:16.7]} 36. Bd3 {[%clk 0:00:20.3]} 36... Bd4 {[%clk 0:00:16.5]} 37. Rc2
{[%clk 0:00:20.2]} 37... Ra1+ {[%clk 0:00:16.4]} 38. Kg2 {[%clk 0:00:20.9]}
38... Ke5 {[%clk 0:00:17.3]} 39. Kh2 {[%clk 0:00:16.6]} 39... f6 {[%clk
0:00:14.6]} 40. h4 {[%clk 0:00:15.5]} 40... Kf4 {[%clk 0:00:14.7]} 41. h5 {[%clk
0:00:15.5]} 41... g5 {[%clk 0:00:14.5]} 42. h6 {[%clk 0:00:14.6]} 42... Ke3
{[%clk 0:00:14.6]} 43. Bb5 {[%clk 0:00:13.6]} 43... Kxe4 {[%clk 0:00:14.7]} 44.
d6 {[%clk 0:00:13.5]} 44... Kf3 {[%clk 0:00:08.6]} 45. d7 {[%clk 0:00:10.7]}
45... Be5+ {[%clk 0:00:08.6]} 46. Kh3 {[%clk 0:00:10.5]} 46... Rh1+ {[%clk
0:00:09.5]} 47. Rh2 {[%clk 0:00:10.7]} 47... Rxh2# {[%clk 0:00:10.4]} 0-1

[Event "*** SCC Grand Prix: Titled Tuesday Blitz"]
[Site "Chess.com"]
[Date "2020.10.13"]
[Round "4"]
[White "chessplayer9919"]
[Black "VladimirBugayev"]
[Result "1-0"]
[WhiteElo "2602"]
[BlackElo "2342"]
[TimeControl "180+1"]
[EndTime "10:40:00 PDT"]
[Termination "chessplayer9919 won on time"]

1. d4 {[%clk 0:03:00.9]} 1... d5 {[%clk 0:02:59.6]} 2. c4 {[%clk 0:03:01]} 2...
c6 {[%clk 0:02:59.7]} 3. Nf3 {[%clk 0:03:01.4]} 3... Nf6 {[%clk 0:03:00.3]} 4.
Nc3 {[%clk 0:03:01.7]} 4... a6 {[%clk 0:03:00.7]} 5. cxd5 {[%clk 0:03:00]} 5...
cxd5 {[%clk 0:03:00.3]} 6. Bf4 {[%clk 0:03:00.5]} 6... Bf5 {[%clk 0:02:50.3]} 7.
e3 {[%clk 0:03:00.2]} 7... Nc6 {[%clk 0:02:47.3]} 8. Bd3 {[%clk 0:02:59.3]} 8...
Bxd3 {[%clk 0:02:41.5]} 9. Qxd3 {[%clk 0:03:00.2]} 9... e6 {[%clk 0:02:42.1]}
10. O-O {[%clk 0:02:58.8]} 10... Bd6 {[%clk 0:02:40.4]} 11. Bg3 {[%clk
0:02:53.1]} 11... Bxg3 {[%clk 0:02:38.1]} 12. hxg3 {[%clk 0:02:48]} 12... O-O
{[%clk 0:02:38.6]} 13. Na4 {[%clk 0:02:44.9]} 13... Ne4 {[%clk 0:02:36.7]} 14.
Nd2 {[%clk 0:02:31.3]} 14... Nd6 {[%clk 0:02:10.5]} 15. Nc5 {[%clk 0:02:25.3]}
15... Qe7 {[%clk 0:02:10.3]} 16. a4 {[%clk 0:02:18]} 16... Nb4 {[%clk
0:01:56.3]} 17. Qb3 {[%clk 0:02:08.1]} 17... a5 {[%clk 0:01:53.9]} 18. Nd3
{[%clk 0:02:04.1]} 18... Nxd3 {[%clk 0:01:49.8]} 19. Qxd3 {[%clk 0:02:05]} 19...
Rfc8 {[%clk 0:01:48.9]} 20. Rfc1 {[%clk 0:02:03.6]} 20... Qd7 {[%clk 0:01:45.3]}
21. b3 {[%clk 0:01:58]} 21... Rxc1+ {[%clk 0:01:38.8]} 22. Rxc1 {[%clk
0:01:58.9]} 22... Rc8 {[%clk 0:01:38.2]} 23. Rc3 {[%clk 0:01:36.4]} 23... b6
{[%clk 0:01:13.7]} 24. f3 {[%clk 0:01:02.5]} 24... g6 {[%clk 0:01:10.8]} 25. Kf2
{[%clk 0:00:50.3]} 25... Kf8 {[%clk 0:01:00.8]} 26. Nb1 {[%clk 0:00:39.7]} 26...
Rxc3 {[%clk 0:00:48.1]} 27. Nxc3 {[%clk 0:00:38.5]} 27... Qc6 {[%clk 0:00:45.4]}
28. g4 {[%clk 0:00:37.8]} 28... h6 {[%clk 0:00:37.7]} 29. Ne2 {[%clk 0:00:35.1]}
29... Kg7 {[%clk 0:00:32.1]} 30. Ke1 {[%clk 0:00:24.5]} 30... b5 {[%clk
0:00:31.7]} 31. axb5 {[%clk 0:00:21.5]} 31... Nxb5 {[%clk 0:00:30.6]} 32. Kd2
{[%clk 0:00:20.1]} 32... Na3 {[%clk 0:00:22.2]} 33. Nc3 {[%clk 0:00:19.5]} 33...
Qb6 {[%clk 0:00:20.6]} 34. Na4 {[%clk 0:00:14.8]} 34... Qb4+ {[%clk 0:00:20.4]}
35. Ke2 {[%clk 0:00:15.1]} 35... Nb5 {[%clk 0:00:20.1]} 36. Qc2 {[%clk
0:00:13.8]} 36... Nd6 {[%clk 0:00:17.6]} 37. Nc5 {[%clk 0:00:12.4]} 37... Qb5+
{[%clk 0:00:15.7]} 38. Kf2 {[%clk 0:00:12.7]} 38... Qb4 {[%clk 0:00:11.2]} 39.
Nd7 {[%clk 0:00:11.8]} 39... a4 {[%clk 0:00:10.9]} 40. bxa4 {[%clk 0:00:07]}
40... Nc4 {[%clk 0:00:10.8]} 41. Nc5 {[%clk 0:00:05.7]} 41... Na3 {[%clk
0:00:08.7]} 42. Qd3 {[%clk 0:00:04.9]} 42... Nb1 {[%clk 0:00:03.1]} 43. f4
{[%clk 0:00:03.7]} 43... Nc3 {[%clk 0:00:01.7]} 44. f5 {[%clk 0:00:03.6]} 1-0

[Event "*** SCC Grand Prix: Titled Tuesday Blitz"]
[Site "Chess.com"]
[Date "2020.10.13"]
[Round "4"]
[White "mirceaparligras"]
[Black "BocharovD"]
[Result "0-1"]
[WhiteElo "2632"]
[BlackElo "2802"]
[TimeControl "180+1"]
[EndTime "10:40:03 PDT"]
[Termination "BocharovD won on time"]

1. d4 {[%clk 0:03:00.9]} 1... Nf6 {[%clk 0:02:38.8]} 2. c4 {[%clk 0:03:00.4]}
2... e6 {[%clk 0:02:38.7]} 3. Nf3 {[%clk 0:03:00]} 3... b6 {[%clk 0:02:37.2]} 4.
Bf4 {[%clk 0:02:56.9]} 4... Bb7 {[%clk 0:02:32.6]} 5. e3 {[%clk 0:02:56.4]} 5...
Bb4+ {[%clk 0:02:29]} 6. Nfd2 {[%clk 0:02:54]} 6... O-O {[%clk 0:02:24]} 7. a3
{[%clk 0:02:53.6]} 7... Be7 {[%clk 0:02:23.1]} 8. Nc3 {[%clk 0:02:52.6]} 8... d5
{[%clk 0:02:06.6]} 9. cxd5 {[%clk 0:02:45.2]} 9... exd5 {[%clk 0:02:06.4]} 10.
Bd3 {[%clk 0:02:41.6]} 10... c5 {[%clk 0:02:05.9]} 11. O-O {[%clk 0:02:35.5]}
11... Nc6 {[%clk 0:02:03.2]} 12. Nf3 {[%clk 0:02:31]} 12... c4 {[%clk 0:02:03]}
13. Bc2 {[%clk 0:02:29.4]} 13... a6 {[%clk 0:02:02.8]} 14. Ne5 {[%clk
0:02:17.3]} 14... b5 {[%clk 0:02:02.9]} 15. Qf3 {[%clk 0:02:09.3]} 15... Na5
{[%clk 0:01:47.5]} 16. g4 {[%clk 0:01:54.3]} 16... Nb3 {[%clk 0:01:45.1]} 17.
Rad1 {[%clk 0:01:53]} 17... Rc8 {[%clk 0:01:22.7]} 18. g5 {[%clk 0:01:48.1]}
18... Ne8 {[%clk 0:01:04.3]} 19. Qh5 {[%clk 0:01:25]} 19... g6 {[%clk
0:00:50.5]} 20. Qh6 {[%clk 0:01:21.1]} 20... Ng7 {[%clk 0:00:45]} 21. Ng4 {[%clk
0:01:00.7]} 21... f5 {[%clk 0:00:44.2]} 22. gxf6 {[%clk 0:00:50.2]} 22... Bxf6
{[%clk 0:00:43.2]} 23. Nxf6+ {[%clk 0:00:48.5]} 23... Qxf6 {[%clk 0:00:42.9]}
24. Be5 {[%clk 0:00:48.9]} 24... Qf7 {[%clk 0:00:39.3]} 25. f4 {[%clk
0:00:46.5]} 25... Rce8 {[%clk 0:00:29.4]} 26. Rf3 {[%clk 0:00:41.8]} 26... Re7
{[%clk 0:00:19]} 27. Rh3 {[%clk 0:00:34.3]} 27... Nf5 {[%clk 0:00:18.6]} 28. Qg5
{[%clk 0:00:29.2]} 28... Bc8 {[%clk 0:00:18.9]} 29. Nxd5 {[%clk 0:00:17.3]}
29... Qxd5 {[%clk 0:00:16.2]} 30. Bxf5 {[%clk 0:00:14.1]} 30... Bxf5 {[%clk
0:00:15.4]} 31. Qxe7 {[%clk 0:00:13.9]} 31... Qf7 {[%clk 0:00:14.9]} 32. Qxf7+
{[%clk 0:00:13.4]} 32... Rxf7 {[%clk 0:00:14.4]} 33. Rg3 {[%clk 0:00:13.5]}
33... Be4 {[%clk 0:00:13.3]} 34. d5 {[%clk 0:00:12.8]} 34... Nc5 {[%clk
0:00:13.3]} 35. d6 {[%clk 0:00:12.9]} 35... Nd3 {[%clk 0:00:13.2]} 36. h4 {[%clk
0:00:10.9]} 36... Rd7 {[%clk 0:00:12.9]} 37. h5 {[%clk 0:00:11]} 37... Kf7
{[%clk 0:00:13.8]} 38. hxg6+ {[%clk 0:00:11.2]} 38... hxg6 {[%clk 0:00:14.7]}
39. Rh3 {[%clk 0:00:10.9]} 39... Ke6 {[%clk 0:00:14.9]} 40. Rh8 {[%clk
0:00:10.2]} 40... Kf5 {[%clk 0:00:10.4]} 41. Rf8+ {[%clk 0:00:09.1]} 41... Kg4
{[%clk 0:00:10.8]} 42. Re8 {[%clk 0:00:06.7]} 42... Kf3 {[%clk 0:00:08.9]} 43.
Re7 {[%clk 0:00:04.7]} 43... Rd8 {[%clk 0:00:08.7]} 44. d7 {[%clk 0:00:03.9]}
44... Bf5 {[%clk 0:00:08.5]} 45. Rh7 {[%clk 0:00:01.8]} 45... Bxd7 {[%clk
0:00:06.9]} 46. Bf6 {[%clk 0:00:00.7]} 46... Rf8 {[%clk 0:00:07]} 0-1

[Event "*** SCC Grand Prix: Titled Tuesday Blitz"]
[Site "Chess.com"]
[Date "2020.10.13"]
[Round "4"]
[White "picturesquecheck"]
[Black "JoliyRoger"]
[Result "1-0"]
[WhiteElo "2223"]
[BlackElo "2432"]
[TimeControl "180+1"]
[EndTime "10:40:03 PDT"]
[Termination "picturesquecheck won by resignation"]

1. e4 {[%clk 0:03:00.9]} 1... c6 {[%clk 0:02:58.3]} 2. d4 {[%clk 0:02:56.6]}
2... d5 {[%clk 0:02:59.2]} 3. Nd2 {[%clk 0:02:57]} 3... dxe4 {[%clk 0:02:58.6]}
4. Nxe4 {[%clk 0:02:55.5]} 4... Bf5 {[%clk 0:02:59.5]} 5. Ng3 {[%clk 0:02:54.3]}
5... Bg6 {[%clk 0:03:00]} 6. h4 {[%clk 0:02:54.6]} 6... h6 {[%clk 0:02:58.9]} 7.
Nf3 {[%clk 0:02:55.5]} 7... Nd7 {[%clk 0:02:58.4]} 8. h5 {[%clk 0:02:56.4]} 8...
Bh7 {[%clk 0:02:59]} 9. Bd3 {[%clk 0:02:57]} 9... Bxd3 {[%clk 0:02:59.7]} 10.
Qxd3 {[%clk 0:02:57.9]} 10... Qc7 {[%clk 0:03:00.3]} 11. Bd2 {[%clk 0:02:57.4]}
11... e6 {[%clk 0:03:00.9]} 12. O-O-O {[%clk 0:02:57.9]} 12... Ngf6 {[%clk
0:03:01.6]} 13. Ne4 {[%clk 0:02:53.7]} 13... O-O-O {[%clk 0:03:02.1]} 14. Kb1
{[%clk 0:02:49.1]} 14... c5 {[%clk 0:03:01.3]} 15. c4 {[%clk 0:02:39]} 15...
cxd4 {[%clk 0:03:00.3]} 16. Nxd4 {[%clk 0:02:35.1]} 16... a6 {[%clk 0:02:24.5]}
17. Bc3 {[%clk 0:02:32.6]} 17... Ne5 {[%clk 0:02:16.2]} 18. Qc2 {[%clk
0:02:08.7]} 18... Nxc4 {[%clk 0:02:08.8]} 19. Nxf6 {[%clk 0:02:07]} 19... gxf6
{[%clk 0:02:09]} 20. Nb3 {[%clk 0:01:44.7]} 20... Be7 {[%clk 0:02:05.8]} 21. Rc1
{[%clk 0:01:39.7]} 21... Kb8 {[%clk 0:01:57.6]} 22. Ba5 {[%clk 0:01:36.1]} 22...
b6 {[%clk 0:01:20.7]} 23. Qxc4 {[%clk 0:01:33.2]} 23... Qxc4 {[%clk 0:01:20.2]}
24. Rxc4 {[%clk 0:01:34.1]} 24... bxa5 {[%clk 0:01:20.9]} 25. Nxa5 {[%clk
0:01:29]} 25... Rd7 {[%clk 0:01:16.5]} 26. Rhc1 {[%clk 0:01:26.2]} 26... Bd6
{[%clk 0:01:08.2]} 27. Rc6 {[%clk 0:01:19.2]} 27... Ka7 {[%clk 0:01:01.4]} 28.
Rd1 {[%clk 0:01:16.7]} 28... Rhd8 {[%clk 0:01:01.9]} 29. a3 {[%clk 0:01:12.3]}
29... Be5 {[%clk 0:00:47.7]} 30. Rxd7+ {[%clk 0:01:05.7]} 30... Rxd7 {[%clk
0:00:48.1]} 31. Rc2 {[%clk 0:01:05.4]} 31... Rd1+ {[%clk 0:00:43.5]} 32. Ka2
{[%clk 0:01:03.2]} 32... Rh1 {[%clk 0:00:42.6]} 33. g4 {[%clk 0:01:02.7]} 33...
Rh2 {[%clk 0:00:35.6]} 34. Nc6+ {[%clk 0:01:01.4]} 34... Kb6 {[%clk 0:00:36.1]}
35. Ne7 {[%clk 0:00:56]} 35... Bf4 {[%clk 0:00:25.4]} 36. Ng8 {[%clk 0:00:54.9]}
36... Bg5 {[%clk 0:00:25.6]} 37. Kb3 {[%clk 0:00:54.4]} 37... Rg2 {[%clk
0:00:24.1]} 38. f3 {[%clk 0:00:52.7]} 38... Rg3 {[%clk 0:00:24.3]} 39. Rc3
{[%clk 0:00:52.8]} 39... Rh3 {[%clk 0:00:21.4]} 40. Rd3 {[%clk 0:00:50.2]} 40...
f5 {[%clk 0:00:20.6]} 41. gxf5 {[%clk 0:00:41.5]} 41... exf5 {[%clk 0:00:21.1]}
42. Nxh6 {[%clk 0:00:40.9]} 42... f4 {[%clk 0:00:16.4]} 43. Nxf7 {[%clk
0:00:37.2]} 43... Bf6 {[%clk 0:00:15.7]} 44. h6 {[%clk 0:00:35.9]} 44... Be7
{[%clk 0:00:13.6]} 45. Kc4 {[%clk 0:00:33.1]} 45... Kc6 {[%clk 0:00:13.9]} 46.
b4 {[%clk 0:00:31.8]} 46... Rh5 {[%clk 0:00:14.5]} 47. a4 {[%clk 0:00:31.4]}
47... Rf5 {[%clk 0:00:14.4]} 48. h7 {[%clk 0:00:30.2]} 48... Bf6 {[%clk
0:00:14.7]} 49. h8=Q {[%clk 0:00:29.6]} 49... Bxh8 {[%clk 0:00:15.3]} 50. Nxh8
{[%clk 0:00:30.5]} 50... Rf6 {[%clk 0:00:15.8]} 51. Rd4 {[%clk 0:00:29.6]} 51...
Kb6 {[%clk 0:00:15]} 52. a5+ {[%clk 0:00:29.3]} 52... Kc6 {[%clk 0:00:15.1]} 53.
Re4 {[%clk 0:00:29.5]} 53... Kd6 {[%clk 0:00:14.6]} 54. Re8 {[%clk 0:00:28.2]}
54... Kc6 {[%clk 0:00:14.4]} 55. Ra8 {[%clk 0:00:27.1]} 55... Kb7 {[%clk
0:00:14.8]} 56. Re8 {[%clk 0:00:26.7]} 56... Rf5 {[%clk 0:00:14.5]} 57. Ng6
{[%clk 0:00:25.2]} 57... Rf6 {[%clk 0:00:13.9]} 58. Ne5 {[%clk 0:00:24.7]} 58...
Rc6+ {[%clk 0:00:14.8]} 59. Nxc6 {[%clk 0:00:24.6]} 1-0

[Event "*** SCC Grand Prix: Titled Tuesday Blitz"]
[Site "Chess.com"]
[Date "2020.10.13"]
[Round "4"]
[White "SamuelGhimpu2003"]
[Black "Durarbayli"]
[Result "1-0"]
[WhiteElo "2576"]
[BlackElo "2778"]
[TimeControl "180+1"]
[EndTime "10:40:04 PDT"]
[Termination "SamuelGhimpu2003 won on time"]

1. d4 {[%clk 0:03:00.9]} 1... Nf6 {[%clk 0:03:00.1]} 2. c4 {[%clk 0:03:00.4]}
2... e6 {[%clk 0:03:00.7]} 3. Nc3 {[%clk 0:03:00.1]} 3... Bb4 {[%clk 0:02:59.8]}
4. Qc2 {[%clk 0:03:00]} 4... d5 {[%clk 0:02:59]} 5. cxd5 {[%clk 0:03:00.9]} 5...
exd5 {[%clk 0:02:59]} 6. Bf4 {[%clk 0:03:00.6]} 6... c5 {[%clk 0:02:52.2]} 7.
dxc5 {[%clk 0:03:00.9]} 7... Qa5 {[%clk 0:02:43.7]} 8. e3 {[%clk 0:02:49.2]}
8... Bf5 {[%clk 0:02:34.3]} 9. Qxf5 {[%clk 0:02:33.7]} 9... Bxc3+ {[%clk
0:02:33.7]} 10. bxc3 {[%clk 0:02:34.6]} 10... Qxc3+ {[%clk 0:02:34.1]} 11. Ke2
{[%clk 0:02:35.3]} 11... Qb2+ {[%clk 0:02:09.3]} 12. Kf3 {[%clk 0:02:29.3]}
12... Nc6 {[%clk 0:02:03.3]} 13. Rb1 {[%clk 0:02:21.2]} 13... Qxa2 {[%clk
0:01:48]} 14. Rxb7 {[%clk 0:02:19.3]} 14... O-O {[%clk 0:01:46.1]} 15. Bb5
{[%clk 0:02:06.7]} 15... Ne4 {[%clk 0:01:28.8]} 16. Ne2 {[%clk 0:02:06]} 16...
g6 {[%clk 0:01:21.7]} 17. Qd7 {[%clk 0:01:43]} 17... Na5 {[%clk 0:00:44.2]} 18.
Rxa7 {[%clk 0:01:13.6]} 18... Nxc5 {[%clk 0:00:41.3]} 19. Qc7 {[%clk 0:01:13.9]}
19... Ne6 {[%clk 0:00:39.7]} 20. Qb6 {[%clk 0:00:54.5]} 20... d4 {[%clk
0:00:30.6]} 21. Rd7 {[%clk 0:00:14.9]} 21... Nc4 {[%clk 0:00:16.8]} 22. Bxc4
{[%clk 0:00:14.6]} 22... Qxc4 {[%clk 0:00:17.7]} 23. Nxd4 {[%clk 0:00:14.5]}
23... Ra2 {[%clk 0:00:18.3]} 24. Re1 {[%clk 0:00:12.1]} 24... Nxf4 {[%clk
0:00:15.9]} 25. exf4 {[%clk 0:00:11.4]} 25... Qd3+ {[%clk 0:00:15.4]} 26. Re3
{[%clk 0:00:11.1]} 26... Qd1+ {[%clk 0:00:15.9]} 27. Kg3 {[%clk 0:00:11.6]}
27... Qd2 {[%clk 0:00:15]} 28. Re2 {[%clk 0:00:10.3]} 28... Qd3+ {[%clk
0:00:10.5]} 29. Re3 {[%clk 0:00:10.8]} 29... Qd2 {[%clk 0:00:10.9]} 30. Rf3
{[%clk 0:00:06.7]} 30... Ra4 {[%clk 0:00:10.8]} 31. Qf6 {[%clk 0:00:04.8]} 31...
Qd1 {[%clk 0:00:06.8]} 32. Nf5 {[%clk 0:00:04.4]} 32... Qxf3+ {[%clk 0:00:05.4]}
33. gxf3 {[%clk 0:00:04.2]} 33... gxf5 {[%clk 0:00:06.3]} 34. Qg5+ {[%clk
0:00:04.1]} 34... Kh8 {[%clk 0:00:07.2]} 35. Qf6+ {[%clk 0:00:04.9]} 35... Kg8
{[%clk 0:00:07.2]} 36. Qxf5 {[%clk 0:00:05.8]} 36... Ra6 {[%clk 0:00:07.4]} 37.
Rd5 {[%clk 0:00:03.4]} 37... Rg6+ {[%clk 0:00:07.4]} 38. Kh3 {[%clk 0:00:04]}
38... Re8 {[%clk 0:00:08.2]} 39. Qh5 {[%clk 0:00:04]} 39... Kg7 {[%clk
0:00:07.3]} 40. Rg5 {[%clk 0:00:04.5]} 40... f6 {[%clk 0:00:07.6]} 41. Rg4
{[%clk 0:00:04.4]} 41... Rh8 {[%clk 0:00:07.2]} 42. f5 {[%clk 0:00:04.7]} 42...
Rxg4 {[%clk 0:00:05.7]} 43. fxg4 {[%clk 0:00:05.6]} 43... Rd8 {[%clk 0:00:03.1]}
44. g5 {[%clk 0:00:05.5]} 44... Rd3+ {[%clk 0:00:04]} 45. Kg2 {[%clk 0:00:05.8]}
45... Rd5 {[%clk 0:00:04.1]} 46. Qh6+ {[%clk 0:00:05.4]} 1-0